bitfinex/quotes_SOLUSD_20251204
["timestamp","ask_amount","ask_price","bid_price","bid_amount"]
[1764854581955,0.66,142.76,142.75,7.00514542]
[1764854586065,0.66,142.76,142.74,31.03439375]
[1764854586761,0.66,142.76,142.72,74.5818191]
[1764854586762,2.63946644,142.75,142.72,9.64235267]
[1764854586967,2.63946644,142.74,142.73,16.308864]
[1764854587344,3.29946644,142.74,142.73,16.308864]
[1764854589134,10.30521115,142.74,142.7,7.00769654]
[1764854589336,2.63946644,142.72,142.69,7.00792176]
[1764854589645,2.63946644,142.72,142.7,7.72]
[1764854589837,2.63946644,142.72,142.69,7.72]
[1764854589838,0.66,142.71,142.69,7.72]
[1764854590757,0.66,142.71,142.68,7.00846741]
[1764854591064,0.66,142.71,142.68,14.72846741]
[1764854591234,0.66,142.71,142.68,7.00846741]
[1764854591443,3.29946644,142.71,142.68,14.72846741]
[1764854591640,10.30685827,142.71,142.68,7.72]
[1764854591858,3.29946644,142.7,142.68,7.72]
[1764854592366,0.66,142.69,142.67,34.41502092]
[1764854593141,2.63946644,142.68,142.67,18.10615692]
[1764854593343,7.00918202,142.67,142.61,0.1]
[1764854593537,7.66918202,142.67,142.62,7.72]
[1764854593753,0.66,142.66,142.62,14.73125882]
[1764854593955,3.29946644,142.66,142.62,14.73125882]
[1764854594367,0.66,142.65,142.63,7.01070482]
[1764854594672,0.66,142.67,142.63,4.78962317]
[1764854594852,11.13801852,142.69,142.64,4.12962317]
[1764854595168,0.66,142.67,142.64,4.78962317]
[1764854595365,0.66,142.67,142.65,7.01007229]
[1764854595949,0.66,142.67,142.64,7.01045725]
[1764854598974,0.66,142.68,142.65,12.50962317]
[1764854599272,0.66,142.67,142.65,11.84962317]
[1764854600471,0.66,142.68,142.66,7.00967334]
[1764854600675,0.66,142.69,142.66,7.00967334]
[1764854602974,11.79787885,142.69,142.65,14.72996277]
[1764854603183,0.66,142.69,142.65,19.51958594]
[1764854603483,0.66,142.68,142.65,14.72996277]
[1764854604385,0.66,142.68,142.64,11.14008185]
[1764854604676,7.66882186,142.68,142.65,14.73010129]
[1764854604858,0.66,142.68,142.65,14.73010129]
[1764854605058,0.66,142.67,142.65,14.73010129]
[1764854607879,0.66,142.68,142.65,14.73010129]
[1764854608086,0.66,142.67,142.65,18.85972446]
[1764854610087,11.13761043,142.7,142.65,18.85972446]
[1764854610266,0.66,142.68,142.65,37.0451363]
[1764854610670,0.66,142.7,142.67,4.12962317]
[1764854610873,0.66,142.7,142.68,4.12962317]
[1764854611384,0.66,142.7,142.67,4.12962317]
[1764854611581,0.66,142.7,142.68,7.72]
[1764854611784,0.66,142.71,142.68,15.38836036]
[1764854612161,0.66,142.71,142.68,19.51798353]
[1764854612887,0.66,142.73,142.69,4.78962317]
[1764854613083,0.66,142.73,142.71,16.308864]
[1764854613493,0.66,142.73,142.71,20.43848717]
[1764854614490,0.66,142.73,142.71,16.308864]
[1764854615465,0.66,142.73,142.71,23.3159386]
[1764854617602,0.66,142.73,142.71,27.44556177]
[1764854617799,0.66,142.75,142.72,4.12962317]
[1764854618100,7.20449864,142.77,142.73,4.12962317]
[1764854618272,0.66,142.75,142.73,4.12962317]
[1764854618470,0.66,142.75,142.72,15.386412]
[1764854618674,0.66,142.75,142.72,19.51603517]
[1764854619395,0.2,142.77,142.73,4.12962317]
[1764854619589,0.86,142.77,142.74,4.12962317]
[1764854619789,7.86456667,142.77,142.73,11.84962317]
[1764854620097,0.66,142.76,142.73,7.72]
[1764854620791,0.66,142.76,142.73,14.72608243]
[1764854622309,7.66477122,142.76,142.73,7.72]
[1764854622795,4.84962317,142.75,142.71,23.31594587]
[1764854623097,4.84962317,142.75,142.71,16.308864]
[1764854623285,0.72,142.74,142.71,16.308864]
[1764854623684,4.84962317,142.74,142.71,16.308864]
[1764854624194,0.72,142.73,142.71,16.308864]
[1764854624887,0.72,142.73,142.7,7.00742536]
[1764854625102,4.84962317,142.73,142.7,7.00742536]
[1764854625279,0.68,142.72,142.69,14.72797967]
[1764854626102,0.68,142.72,142.69,7.00797967]
[1764854626284,4.80962317,142.72,142.69,7.00797967]
[1764854626798,0.68,142.71,142.69,7.00797967]
[1764854626996,0.68,142.71,142.68,14.72850187]
[1764854627378,0.68,142.71,142.68,15.44850187]
[1764854629389,17.51490039,142.74,142.69,4.84962317]
[1764854629390,4.80962317,142.74,142.69,4.84962317]
[1764854629587,4.12962317,142.74,142.69,4.84962317]
[1764854629791,0.68,142.73,142.69,4.12962317]
[1764854630102,0.68,142.73,142.7,4.84962317]
[1764854630319,0.68,142.73,142.7,7.72744219]
[1764854630980,7.68640112,142.73,142.69,7.72805662]
[1764854631176,11.81602429,142.73,142.69,15.44805662]
[1764854631494,0.68,142.72,142.69,15.44805662]
[1764854637604,7.00640112,142.73,142.69,14.72805662]
[1764854637784,7.68640112,142.73,142.7,0.72]
[1764854638813,7.68640112,142.73,142.7,7.7275625]
[1764854639312,7.68640112,142.73,142.7,0.72]
[1764854641091,0.68,142.73,142.7,0.72]
[1764854641285,0.68,142.73,142.7,7.72757755]
[1764854641712,7.68628871,142.73,142.7,7.72757755]
[1764854641896,11.13591188,142.73,142.69,14.72797192]
[1764854642202,0.68,142.72,142.69,15.44797192]
[1764854643717,0.68,142.72,142.69,14.72797192]
[1764854644018,7.00597837,142.74,142.7,0.72]
[1764854644191,7.68597837,142.74,142.7,0.72]
[1764854644386,7.68597837,142.74,142.7,8.44]
[1764854644802,7.68597837,142.74,142.71,0.72]
[1764854645185,0.68,142.76,142.71,11.85657017]
[1764854645613,0.68,142.76,142.72,0.72]
[1764854646400,7.68494358,142.76,142.72,4.84962317]
[1764854647322,7.68494358,142.76,142.72,11.85623928]
[1764854647504,0.68,142.75,142.72,11.85623928]
[1764854648412,0.68,142.75,142.72,7.72661611]
[1764854648614,7.88430531,142.77,142.73,8.44]
[1764854648803,0.68,142.76,142.73,8.44]
[1764854649125,0.68,142.76,142.72,19.57623928]
[1764854649329,0.68,142.76,142.72,15.44661611]
[1764854651114,7.68478136,142.76,142.72,15.44661611]
[1764854651310,11.81440453,142.76,142.72,15.44661611]
[1764854651507,0.68,142.75,142.72,15.44661611]
[1764854652822,7.00478136,142.76,142.73,0.65]
[1764854653029,0.66,142.76,142.73,7.65609033]
[1764854655612,7.66484241,142.76,142.73,0.65]
[1764854655821,7.66484241,142.76,142.72,15.37650018]
[1764854656337,7.66484241,142.76,142.73,0.65]
[1764854657932,7.66484241,142.76,142.73,7.65620282]
[1764854660342,0.86,142.77,142.74,0.65]
[1764854660917,7.86432252,142.77,142.74,0.65]
[1764854661832,0.2,142.77,142.75,10.35881725]
[1764854662230,0.2,142.77,142.76,10.29358048]
[1764854662741,0.2,142.77,142.76,7.65476323]
[1764854663830,0.2,142.77,142.75,7.72]
[1764854664118,0.2,142.77,142.75,31.68398819]
[1764854666335,0.2,142.77,142.76,0.65]
[1764854666656,0.2,142.77,142.76,7.65476323]
[1764854667018,0.2,142.77,142.76,15.37476323]
[1764854667931,0.2,142.77,142.76,8.37]
[1764854669653,0.2,142.77,142.76,0.65]
[1764854669817,0.2,142.77,142.76,7.72]
[1764854670015,0.2,142.77,142.76,8.37]
[1764854672050,0.2,142.77,142.76,7.72]
[1764854672555,0.56,142.78,142.76,7.72]
[1764854672727,7.00356071,142.79,142.76,8.37]
[1764854672924,9.64180843,142.8,142.76,15.37466562]
[1764854673137,7.00299118,142.8,142.77,0.65]
[1764854673928,7.00299118,142.8,142.76,15.37466562]
[1764854674114,7.00299118,142.8,142.76,14.72466562]
[1764854674316,7.00299118,142.8,142.77,0.65]
[1764854674518,0.2,142.81,142.79,2.63881725]
[1764854674745,0.2,142.81,142.8,26.66768125]
[1764854674935,0.2,142.81,142.8,24.028864]
[1764854675130,0.2,142.81,142.8,24.678864]
[1764854676023,0.2,142.81,142.8,31.68166512]
[1764854678045,0.2,142.81,142.8,34.32048237]
[1764854680445,0.2,142.81,142.8,31.68166512]
[1764854681345,0.2,142.81,142.8,34.32048237]
[1764854682470,0.2,142.81,142.8,44.87575137]
[1764854682631,0.2,142.81,142.8,182.17575136]
[1764854682632,1e-08,142.81,142.8,182.17575136]
[1764854683265,1e-08,142.81,142.8,170.07161003]
[1764854683565,1e-08,142.81,142.8,190.98569628]
[1764854683922,1e-08,142.82,142.81,84.46994492]
[1764854684165,0.2,142.86,142.84,25.11880892]
[1764854684374,0.2,142.88,142.87,6.99937005]
[1764854684736,0.2,142.88,142.87,37.10728932]
[1764854685266,0.2,142.91,142.9,16.308864]
[1764854685467,0.2,142.91,142.9,24.008864]
[1764854685759,0.2,142.91,142.9,26.64768125]
[1764854686165,0.2,142.91,142.9,24.668864]
[1764854686348,0.2,142.91,142.9,34.30558187]
[1764854687246,1e-08,142.92,142.9,42.45552679]
[1764854687445,0.2,142.94,142.93,16.308864]
[1764854687652,1e-08,142.94,142.93,182.81880892]
[1764854687847,0.72,143.02,142.93,183.52880892]
[1764854688064,0.72,143.02,142.99,2.63881725]
[1764854688263,0.72,143.02,142.99,7.7]
[1764854688456,0.92,143.04,143.0,9.63170643]
[1764854688971,0.2,143.04,143.0,6.99288918]
[1764854689151,0.72,143.03,143.02,2.63881725]
[1764854689462,0.72,143.03,143.02,7.7]
[1764854690253,0.2,143.04,143.02,7.7]
[1764854690456,0.92,143.04,143.02,7.7]
[1764854690769,7.9110784,143.04,143.02,7.7]
[1764854690961,0.72,143.03,143.0,10.33881725]
[1764854691151,0.72,143.03,143.0,7.7]
[1764854691469,0.72,143.03,142.98,7.7]
[1764854691772,2.63881725,143.01,142.98,7.7]
[1764854692149,0.72,143.0,142.98,7.7]
[1764854692350,3.35881725,143.0,142.98,7.7]
[1764854692672,2.63881725,142.99,142.96,7.7]
[1764854692967,0.72,142.99,142.96,7.7]
[1764854693165,0.72,142.98,142.96,7.7]
[1764854694072,0.72,142.98,142.94,25.94353047]
[1764854694271,0.72,142.98,142.95,15.40532588]
[1764854694567,0.72,142.98,142.95,6.99532588]
[1764854694770,10.35296637,142.98,142.92,2.63881725]
[1764854694948,2.63881725,142.97,142.94,16.308864]
[1764854695153,0.72,142.97,142.94,16.308864]
[1764854695354,0.72,142.96,142.94,16.308864]
[1764854695550,0.72,142.99,142.95,3.34881725]
[1764854695765,0.72,142.99,142.94,18.94768125]
[1764854695766,7.71362077,142.99,142.94,18.94768125]
[1764854696273,0.72,142.98,142.94,18.94768125]
[1764854696575,0.72,142.98,142.94,26.65329391]
[1764854696752,6.99202908,143.02,142.95,7.70544293]
[1764854696957,2.63881725,143.01,142.95,10.34426018]
[1764854697156,6.99202908,143.02,142.95,10.34426018]
[1764854697157,2.63881725,143.0,142.95,10.34426018]
[1764854697461,2.63881725,143.0,142.95,7.70544293]
[1764854697868,9.63208078,143.0,142.95,7.70544293]
[1764854698271,9.63208078,143.0,142.96,0.71]
[1764854698977,0.72,142.99,142.95,9.63426018]
[1764854699153,0.72,142.99,142.95,10.34426018]
[1764854699357,0.72,142.99,142.95,9.63426018]
[1764854699765,0.72,142.99,142.95,10.34426018]
[1764854700475,0.72,142.99,142.96,7.7]
[1764854700668,0.72,143.03,142.97,2.63881725]
[1764854700970,0.2,143.04,143.03,16.308864]
[1764854701162,0.2,143.04,143.03,24.008864]
[1764854701360,0.2,143.04,143.03,7.7]
[1764854701680,0.2,143.04,143.01,7.72]
[1764854701879,0.92,143.04,143.01,7.72]
[1764854702050,7.19128744,143.04,143.01,7.72]
[1764854702256,7.19128744,143.04,143.01,8.43]
[1764854702681,0.2,143.04,143.01,15.42251135]
[1764854702859,7.19113598,143.04,143.01,8.43]
[1764854703061,7.19113598,143.04,143.01,11.06881725]
[1764854703375,7.19113598,143.04,143.01,28.544966]
[1764854704080,7.91113598,143.04,143.01,7.72]
[1764854704401,6.99202908,143.02,142.99,39.06264725]
[1764854704572,6.99202908,143.02,142.99,7.72]
[1764854704774,7.71202908,143.02,142.99,7.72]
[1764854705483,3.35881725,143.01,142.96,24.01364428]
[1764854705668,2.63881725,143.0,142.97,7.72]
[1764854705866,3.35881725,143.0,142.97,7.72]
[1764854706066,6.99202908,143.02,142.97,7.72]
[1764854706067,0.72,142.99,142.97,7.72]
[1764854706573,2.63881725,143.0,142.97,7.72]
[1764854706574,6.9931577,143.0,142.97,10.35881725]
[1764854706767,7.7131577,143.0,142.96,10.34374997]
[1764854707000,7.7131577,143.0,142.96,15.42493272]
[1764854707162,7.7131577,143.0,142.96,18.06374997]
[1764854707777,0.72,142.99,142.96,7.72]
[1764854708195,2.63881725,142.98,142.96,7.72]
[1764854708561,0.72,142.98,142.96,7.72]
[1764854708762,0.72,142.97,142.94,24.028864]
[1764854708969,0.72,142.97,142.94,24.738864]
[1764854709201,3.35881725,142.98,142.94,24.738864]
[1764854709856,6.99447436,142.97,142.94,24.738864]
[1764854710058,10.35329161,142.97,142.94,24.028864]
[1764854710268,0.72,142.96,142.94,24.028864]
[1764854710485,3.35881725,142.96,142.92,0.71]
[1764854710665,3.35881725,142.96,142.92,7.72]
[1764854710981,0.72,142.95,142.92,7.72]
[1764854711286,24.48066027,142.97,142.92,8.43]
[1764854711487,0.72,142.96,142.92,8.43]
[1764854711866,6.99545295,142.95,142.92,7.72]
[1764854712477,6.99545295,142.95,142.91,10.34592457]
[1764854712478,0.72,142.94,142.91,7.72]
[1764854712892,3.35881725,142.94,142.91,7.72]
[1764854713360,10.35502585,142.94,142.91,7.72]
[1764854713981,10.35502585,142.94,142.9,15.42777303]
[1764854714586,2.63881725,142.96,142.91,0.67]
[1764854714788,0.71,142.94,142.91,0.67]
[1764854715473,6.99545295,142.95,142.91,0.67]
[1764854715783,10.3442702,142.95,142.91,7.66738963]
[1764854716174,3.34881725,142.97,142.91,10.30620688]
[1764854716374,3.34881725,142.97,142.92,0.67]
[1764854717296,10.34340632,142.97,142.92,7.66658242]
[1764854717789,10.34340632,142.97,142.93,0.67]
[1764854717967,0.71,142.96,142.93,0.67]
[1764854718394,4.82175653,142.96,142.93,0.67]
[1764854718787,11.8163456,142.97,142.93,7.66635444]
[1764854718984,4.11175653,143.0,142.93,15.38635444]
[1764854719198,4.82175653,143.0,142.94,4.78175653]
[1764854719572,4.82175653,143.0,142.95,0.67]
[1764854719976,6.99202908,143.02,142.97,4.11175653]
[1764854720497,11.81378561,143.02,142.98,0.67]
[1764854720794,0.71,143.01,142.98,0.67]
[1764854721595,11.10378561,143.02,142.98,7.66395873]
[1764854721791,18.18951319,143.03,142.99,0.67]
[1764854721792,11.10346859,143.03,142.99,0.67]
[1764854721983,4.11175653,143.03,142.99,8.39]
[1764854722190,12.01292943,143.04,142.99,12.50175653]
[1764854722392,0.71,143.03,142.99,15.38312554]
[1764854722572,0.71,143.03,142.99,19.49488207]
[1764854724179,0.71,143.03,142.99,12.50175653]
[1764854724376,6.99202908,143.02,142.99,7.72]
[1764854724689,21.78938516,143.04,143.0,0.67]
[1764854724889,7.70172032,143.03,142.97,34.96257122]
[1764854725090,11.81347685,143.03,142.98,12.50175653]
[1764854725496,0.71,143.02,142.98,12.50175653]
[1764854725672,0.71,143.02,142.99,0.67]
[1764854726976,6.992518,143.01,142.99,0.67]
[1764854727983,7.70224603,143.02,142.99,0.67]
[1764854729783,6.99224603,143.02,142.99,0.67]
[1764854730975,6.99224603,143.02,142.99,4.78175653]
[1764854731196,0.2,143.04,142.99,11.77500897]
[1764854731384,0.91,143.04,143.0,0.67]
[1764854731904,7.70161633,143.03,143.0,0.67]
[1764854732097,6.99161633,143.03,143.0,0.67]
[1764854732914,7.70161633,143.03,143.0,0.67]
[1764854733096,7.70161633,143.03,143.0,7.66293608]
[1764854733290,0.2,143.04,143.01,11.83175653]
[1764854733610,0.2,143.04,143.01,12.50175653]
[1764854733905,0.2,143.04,143.01,19.49413036]
[1764854734277,7.19107175,143.04,143.01,19.49413036]
[1764854734496,0.71,143.03,143.0,6.99292767]
[1764854734702,7.90107175,143.04,143.0,11.7746842]
[1764854734910,0.91,143.04,143.01,6.99230634]
[1764854735088,0.2,143.04,143.01,11.77406287]
[1764854735279,0.2,143.04,143.02,0.67]
[1764854735886,0.2,143.04,143.02,7.66178985]
[1764854736088,0.2,143.04,143.02,11.77354638]
[1764854736297,0.2,143.04,143.03,0.67]
[1764854736494,0.2,143.04,143.03,4.78175653]
[1764854736881,0.2,143.04,143.03,0.67]
[1764854737691,0.2,143.04,143.03,4.78175653]
[1764854737886,0.2,143.04,143.03,11.77329676]
[1764854738695,0.2,143.04,143.03,7.66154023]
[1764854738895,0.2,143.04,143.03,11.77329676]
[1764854739419,35.02998513,143.15,143.03,11.77329676]
[1764854739420,0.71,143.13,143.07,16.308864]
[1764854739584,0.71,143.13,143.09,4.11175653]
[1764854739783,0.71,143.13,143.1,4.11175653]
[1764854740013,0.1,143.15,143.12,4.11175653]
[1764854740196,0.1,143.15,143.13,4.11175653]
[1764854740395,0.1,143.15,143.14,4.11175653]
[1764854740901,0.1,143.15,143.14,28.81062053]
[1764854741109,0.1,143.15,143.14,24.698864]
[1764854741318,0.1,143.15,143.14,20.42062053]
[1764854741498,0.1,143.15,143.13,16.308864]
[1764854741707,0.1,143.15,143.12,4.81175653]
[1764854742196,0.1,143.15,143.12,0.7]
[1764854742397,7.77578296,143.15,143.11,24.028864]
[1764854742613,11.88753949,143.15,143.11,24.028864]
[1764854742793,0.69,143.14,143.11,24.028864]
[1764854743108,7.08578296,143.15,143.11,28.85062053]
[1764854743311,7.08583165,143.15,143.11,24.738864]
[1764854743611,7.77583165,143.15,143.11,28.85062053]
[1764854743819,0.1,143.15,143.13,4.11175653]
[1764854743989,0.1,143.15,143.14,35.12678791]
[1764854744417,0.1,143.15,143.14,35.83678791]
[1764854745992,0.1,143.15,143.14,31.72503138]
[1764854746197,0.1,143.15,143.14,35.83678791]
[1764854746501,0.1,143.15,143.14,31.72503138]
[1764854746724,0.1,143.15,143.14,35.83678791]
[1764854749099,0.1,143.15,143.14,19.52792391]
[1764854751199,0.1,143.15,143.14,11.83175653]
[1764854751522,0.1,143.15,143.14,35.83678791]
[1764854752017,0.1,143.15,143.14,24.028864]
[1764854752225,0.1,143.15,143.14,16.308864]
[1764854752397,0.1,143.15,143.11,7.72]
[1764854752398,7.77567935,143.15,143.11,7.72]
[1764854752592,11.88743588,143.15,143.11,7.72]
[1764854752796,0.69,143.14,143.11,7.72]
[1764854752992,4.11175653,143.13,143.08,11.81066068]
[1764854753197,4.11175653,143.13,143.09,7.72]
[1764854753419,0.69,143.12,143.08,7.72]
[1764854753625,0.69,143.12,143.08,24.028864]
[1764854753918,0.69,143.12,143.08,35.83970991]
[1764854754124,7.67721414,143.12,143.08,35.83970991]
[1764854754619,7.67721414,143.12,143.08,26.30270658]
[1764854754826,7.67721414,143.12,143.08,42.61157058]
[1764854755196,0.69,143.11,143.1,16.308864]
[1764854755396,0.69,143.11,143.08,7.72]
[1764854755397,18.56124909,143.11,143.08,7.72]
[1764854755595,11.5736172,143.11,143.08,7.72]
[1764854755801,0.69,143.11,143.08,15.41884022]
[1764854756019,6.98634083,143.14,143.09,0.71]
[1764854756217,18.25477823,143.15,143.09,0.71]
[1764854756218,0.79,143.15,143.11,10.8836172]
[1764854756519,0.69,143.14,143.1,10.8836172]
[1764854757012,0.1,143.15,143.11,27.9024812]
[1764854757210,0.1,143.15,143.11,35.6224812]
[1764854757418,18.6594301,143.15,143.11,31.72610597]
[1764854757620,7.7758129,143.15,143.11,42.60972317]
[1764854757802,18.6594301,143.15,143.11,31.72610597]
[1764854758213,0.69,143.14,143.11,31.01610597]
[1764854760313,7.67618889,143.14,143.11,24.028864]
[1764854760823,0.69,143.13,143.11,7.72]
[1764854761210,11.5736172,143.13,143.09,7.69843112]
[1764854761408,11.5736172,143.13,143.06,44.59453564]
[1764854761409,10.8836172,143.11,143.06,10.8836172]
[1764854761628,6.98763189,143.11,143.07,6.98940998]
[1764854761811,0.69,143.1,143.06,0.71]
[1764854762128,11.5736172,143.1,143.05,14.7104104]
[1764854762314,11.5736172,143.1,143.05,15.4204104]
[1764854762519,0.69,143.09,143.05,14.7104104]
[1764854762719,11.5736172,143.09,143.05,14.7104104]
[1764854763028,10.8836172,143.06,142.98,7.70377626]
[1764854763332,10.8836172,143.01,142.96,6.99467245]
[1764854763520,24.028864,143.07,142.96,6.99467245]
[1764854763521,17.87685043,143.0,142.96,14.71467245]
[1764854763717,10.8836172,142.99,142.95,6.9953529]
[1764854763907,10.8836172,142.99,142.95,16.308864]
[1764854764235,11.5736172,142.98,142.94,6.99582291]
[1764854764409,11.5736172,142.98,142.93,21.3733754]
[1764854764410,0.69,142.98,142.93,21.3733754]
[1764854764707,0.69,142.99,142.94,11.5936172]
[1764854765232,0.69,142.99,142.95,6.99513312]
[1764854765530,10.8836172,143.0,142.96,6.99495115]
[1764854765738,11.5736172,143.0,142.96,6.99495115]
[1764854766410,18.56565495,143.02,142.97,0.71]
[1764854766919,0.69,143.01,142.97,11.5936172]
[1764854767238,0.69,143.01,142.96,6.99495115]
[1764854767239,11.5736172,143.01,142.96,6.99495115]
[1764854767419,10.8836172,143.0,142.95,25.5989761]
[1764854767631,10.8836172,143.0,142.95,7.72]
[1764854767632,10.8836172,142.98,142.95,7.72]
[1764854767964,10.8836172,142.97,142.94,7.72]
[1764854768127,10.8836172,142.96,142.93,21.3733754]
[1764854768636,0.69,142.95,142.93,21.3733754]
[1764854768829,0.69,142.95,142.92,7.72]
[1764854768830,11.5736172,142.95,142.92,7.72]
[1764854769235,10.8836172,142.96,142.92,14.71679019]
[1764854769436,10.8836172,142.96,142.93,6.99640605]
[1764854769637,11.5736172,142.96,142.92,15.42677078]
[1764854770131,11.5736172,142.95,142.92,7.72]
[1764854770336,10.8836172,142.95,142.92,7.72]
[1764854770632,11.5736172,142.94,142.89,6.99832467]
[1764854770838,11.5736172,142.93,142.89,7.70832467]
[1764854771336,11.5736172,142.93,142.89,6.99832467]
[1764854771547,11.5736172,142.93,142.89,7.70832467]
[1764854772336,10.8836172,142.91,142.88,24.028864]
[1764854772513,10.8836172,142.91,142.88,7.72]
[1764854772713,11.5836172,142.91,142.88,7.72]
[1764854773339,11.5836172,142.91,142.87,6.99922787]
[1764854773640,11.5836172,142.91,142.87,7.65922787]
[1764854774649,0.7,142.91,142.87,7.65922787]
[1764854774947,11.5836172,142.91,142.87,7.65922787]
[1764854775252,0.7,142.91,142.87,7.65922787]
[1764854775459,18.58110802,142.91,142.86,16.308864]
[1764854775637,18.58110802,142.91,142.86,31.68860093]
[1764854775841,11.5836172,142.91,142.86,41.91221813]
[1764854776035,0.7,142.93,142.88,10.8836172]
[1764854776554,11.5836172,142.93,142.88,11.5436172]
[1764854777055,11.5836172,142.93,142.88,7.65864207]
[1764854777056,0.7,142.92,142.88,7.65864207]
[1764854777236,0.7,142.92,142.88,0.66]
[1764854777549,11.5836172,142.92,142.87,25.60283352]
[1764854777751,11.5836172,142.92,142.87,26.26283352]
[1764854778062,11.5836172,142.92,142.88,6.99868521]
[1764854778433,7.75279319,142.92,142.88,6.99868521]
[1764854778641,7.75279319,142.91,142.87,14.71924798]
[1764854779051,7.75279319,142.91,142.87,15.37924798]
[1764854779249,7.05279319,142.92,142.88,0.66]
[1764854779937,14.7493884,142.93,142.88,0.66]
[1764854780159,7.69659521,142.93,142.88,0.66]
[1764854780353,6.99659521,142.93,142.89,6.99839037]
[1764854780652,0.7,142.92,142.89,6.99839037]
[1764854780828,0.7,142.92,142.88,7.65880002]
[1764854781444,7.05279319,142.94,142.89,7.71279319]
[1764854781755,15.47279319,142.95,142.9,14.77279319]
[1764854781956,7.05279319,142.96,142.9,7.72]
[1764854782160,7.75279319,142.96,142.91,0.66]
[1764854782345,7.75279319,142.96,142.92,6.99692135]
[1764854782661,7.05279319,142.97,142.92,6.99692135]
[1764854782857,7.05279319,142.96,142.92,7.65692135]
[1764854783249,7.05279319,142.96,142.92,6.99692135]
[1764854783456,7.05279319,142.97,142.93,0.66]
[1764854783660,7.05279319,142.95,142.89,23.36165719]
[1764854783837,7.05279319,142.95,142.91,6.99725352]
[1764854784242,7.75279319,142.95,142.91,7.65725352]
[1764854785758,7.75279319,142.97,142.92,0.66]
[1764854786251,0.7,142.96,142.92,0.66]
[1764854786765,0.7,142.96,142.92,7.65644301]
[1764854787561,6.9941762,142.98,142.93,7.71279319]
[1764854787860,7.75279319,142.97,142.92,6.99644301]
[1764854788447,14.71356081,142.99,142.93,7.71279319]
[1764854788655,0.7,142.99,142.95,6.99545295]
[1764854788854,7.75279319,142.99,142.95,6.99545295]
[1764854789255,7.75279319,142.99,142.94,7.65575627]
[1764854789457,7.75279319,142.98,142.94,6.99575627]
[1764854789969,7.75279319,142.97,142.93,14.7162932]
[1764854790473,7.75279319,142.97,142.94,6.99586883]
[1764854790671,0.7,142.97,142.94,6.99586883]
[1764854791770,14.04697245,142.98,142.94,6.99586883]
[1764854791965,8.80994492,142.99,142.95,0.66]
[1764854791966,7.75279319,142.99,142.95,0.66]
[1764854792168,7.05279319,142.99,142.95,0.66]
[1764854792367,0.7,142.98,142.95,0.66]
[1764854792859,7.75279319,142.98,142.94,6.99586883]
[1764854793068,14.74681657,142.98,142.94,7.65586883]
[1764854794672,7.75279319,143.0,142.95,0.66]
[1764854795673,7.69316255,143.0,142.96,6.99496362]
[1764854796070,7.69316255,143.0,142.96,7.65496362]
[1764854796256,14.74595574,143.0,142.96,7.65496362]
[1764854796752,7.69316255,143.0,142.96,7.65496362]
[1764854797470,7.69217773,143.02,142.97,7.71279319]
[1764854797864,7.05279319,143.0,142.96,7.72]
[1764854798363,7.05279319,143.01,142.96,8.38]
[1764854798560,0.7,143.0,142.96,8.38]
[1764854799081,7.69338658,143.0,142.96,15.37494991]
[1764854799453,0.7,142.99,142.96,7.65494991]
[1764854799862,6.99338658,143.0,142.96,7.65494991]
[1764854800061,7.69338658,143.0,142.96,7.65494991]
[1764854800669,7.69338658,143.0,142.96,6.99494991]
[1764854800880,7.69338658,143.0,142.97,0.66]
[1764854801977,7.75279319,143.02,142.97,7.654262]
[1764854802480,7.75279319,143.02,142.98,0.66]
[1764854802679,14.74504677,143.02,142.98,0.66]
[1764854803170,14.74504677,143.02,142.98,7.65351923]
[1764854803171,6.99225358,143.02,142.98,7.65351923]